Cogmind - Beta 12 X1 @@@ ROGUE MODE // 2022.07.11 @ 21:49:40 Player: btmk16 Result: Destroyed by S-43 Plague with Heavy Machine Gun Performance ------------- Evolutions (9) 4500 Regions Visited (30) 6000 Robots Destroyed (218) 1090 Value Destroyed (7814) 7814 Prototype IDs (45) 900 Alien Tech Used (1) 200 Bonus (3516) 3516 TOTAL SCORE: 24020 Bonus ------- High Alert Combat Kills 155 Follower Combat Kills 596 Entered DSFs 1000 Met Data Miner 300 Met Imprinter 300 Met Zhirov 300 Hacked Protovariant 500 Scanned by Researcher 500 Friendly Fire -135 Cogmind --------- Core Integrity 0/1600 Matter 300/300 Energy 98/100 System Corruption 12% Temperature Warm (165) Movement Core (50) Location -1/Command Parts ------- > --- POWER (1) -------- (None) > --- PROPULSION (8) --- (None) > --- UTILITY (13) ----- (None) > --- WEAPON (3) ------- (None) > --- INVENTORY (5) ---- Advanced Powered Armor Decoy Drone Bay (11/16) Enhanced Nova Cannon Faulty Nanosword Peak State ------------ > --- POWER ------------ Compact Particle Reactor > --- PROPULSION ------- Field Propulsion Array Diametric Drive Diametric Drive Diametric Drive Q-thruster Impulse Thruster Array > --- UTILITY ---------- 2N-1CE's Frost Array Medium Storage Unit Experimental Optical Array Advanced Sensor Array Experimental Signal Interpreter Advanced Reaction Control System Advanced Powered Armor Improved Hacking Suite Advanced Hacking Suite Experimental Hacking Suite Advanced System Shield Decoy Drone Bay > --- WEAPON ----------- Gravity Flail Enhanced Force Lance Enhanced Force Lance > --- INVENTORY -------- Field Propulsion Array Impulse Thruster Array Experimental Q-thruster Advanced Powered Armor Fusion Bomb Launcher Nanosword [Rating: 187] Favorites ----------- Power Ion Engine Engine Ion Engine Power Core Fission Core Reactor Antimatter Reactor Propulsion Armored Wheel Treads Advanced Treads Leg Flexi-carbon Leg Wheel Armored Wheel Hover Unit Combat Gravmag System Flight Unit Cooled Nuclear Pulse Thruster Utility Huge Storage Unit Device Advanced Heat Sink Storage Huge Storage Unit Processor Improved Signal Interpreter Hackware Improved Hacking Suite Protection Improved Medium Armor Plating Weapon Thermic Laser Energy Gun Thermic Laser Energy Cannon Heavy Plasma Cannon Ballistic Gun Enhanced Autogun Ballistic Cannon Enhanced Gauss Cannon Launcher Improved Grenade Launcher Impact Weapon Gravity Flail Slashing Weapon Greatsword Piercing Weapon Enhanced Force Lance Build | -11 -10 -10 -9 -9 -9 -8 -8 -7 -7 -7 -7 -6 -6 -6 -6 -6 -5 -5 -5 -5 -5 -4 -4 -4 -3 -3 -2 -2 -1 -1 ------- Run | Scr Mat Min Mat Min Exi Min Mat Fac Low Low Dat Pro Fac Low Low Zio Pro Fac Upp Upp Zhi Pro Fac DSF Res Tes Res DSF Acc Com Slots Evolved 18 | . . . 2 . . . 2 2 . . . . 2 . . . . 2 . . . . 2 . 2 . 2 . 2 . Power . | . . . . . . . . . . . . . . . . . . . . . . . . . . . . . . . Propulsion 6 | . . . . . . . 1 . . . . . 1 . . . . 1 . . . . 1 . . . 1 . 1 . Utility 11 | . . . 1 . . . 1 2 . . . . 1 . . . . 1 . . . . 1 . 2 . 1 . 1 . Weapon 1 | . . . 1 . . . . . . . . . . . . . . . . . . . . . . . . . . . Parts Attached 315 | 1 13 2 24 1 . 2 22 7 5 5 . 16 54 8 5 15 5 23 5 1 21 4 7 2 15 7 4 7 26 8 Power 27 | . 1 . 3 . . . 1 . . 2 . 1 5 2 . 1 . 1 . . 1 . 1 2 1 2 1 1 1 . Engine 12 | . 1 . 3 . . . 1 . . 2 . . 3 1 . . . . . . . . 1 . . . . . . . Core 7 | . . . . . . . . . . . . . 2 1 . 1 . 1 . . . . . 2 . . . . . . Reactor 8 | . . . . . . . . . . . . 1 . . . . . . . . 1 . . . 1 2 1 1 1 . Propulsion 72 | . 7 . 3 . . . 7 2 1 . . 3 16 . 1 2 . 7 1 . 8 . 2 . 1 . 3 1 4 3 Treads 18 | . 2 . . . . . 5 1 1 . . 3 4 . . . . 2 . . . . . . . . . . . . Leg 6 | . 1 . . . . . . . . . . . 4 . . . . . . . 1 . . . . . . . . . Wheel 22 | . 4 . 3 . . . 2 1 . . . . 8 . 1 2 . . 1 . . . . . . . . . . . Hover 5 | . . . . . . . . . . . . . . . . . . 3 . . 1 . 1 . . . . . . . Flight 21 | . . . . . . . . . . . . . . . . . . 2 . . 6 . 1 . 1 . 3 1 4 3 Utility 116 | 1 2 1 2 . . . 9 4 4 2 . 7 22 3 2 8 4 5 1 1 8 1 1 . 10 1 . 1 16 . Device 57 | 1 . 1 . . . . 5 2 1 . . 2 8 2 1 4 4 1 1 1 3 1 1 . 5 . . 1 12 . Storage 9 | . 2 . . . . . . . . . . 2 2 . . . . . . . 2 . . . . . . . 1 . Processor 12 | . . . 1 . . . 1 . 1 1 . . 1 . . 3 . 1 . . . . . . 2 . . . 1 . Hackware 8 | . . . . . . . . . . . . . 1 1 . 1 . 2 . . 1 . . . 2 . . . . . Protection 30 | . . . 1 . . . 3 2 2 1 . 3 10 . 1 . . 1 . . 2 . . . 1 1 . . 2 . Artifact . | . . . . . . . . . . . . . . . . . . . . . . . . . . . . . . . Weapon 100 | . 3 1 16 1 . 2 5 1 . 1 . 5 11 3 2 4 1 10 3 . 4 3 3 . 3 4 . 4 5 5 Energy Gun 18 | . . . 3 . . 1 . . . . . 1 5 2 1 2 1 . . . 1 1 . . . . . . . . Energy Cannon 5 | . . . . . . . . . . 1 . . 2 . . . . 1 . . . . . . . . . . . 1 Ballistic Gun 36 | . 3 1 10 1 . . 4 1 . . . 2 3 . . 1 . 5 1 . 3 . . . . . . . 1 . Ballistic Cannon 14 | . . . . . . . . . . . . . . . . 1 . 3 1 . . 2 3 . 2 2 . . . . Launcher 15 | . . . 3 . . 1 1 . . . . 1 . 1 1 . . . 1 . . . . . . . . 3 1 2 Special Weapon . | . . . . . . . . . . . . . . . . . . . . . . . . . . . . . . . Impact Weapon 2 | . . . . . . . . . . . . . . . . . . 1 . . . . . . . 1 . . . . Slashing Weapon 2 | . . . . . . . . . . . . 1 1 . . . . . . . . . . . . . . . . . Piercing Weapon 8 | . . . . . . . . . . . . . . . . . . . . . . . . . 1 1 . 1 3 2 Special Melee Weapon . | . . . . . . . . . . . . . . . . . . . . . . . . . . . . . . . Unidentified Prototypes 25 | . . . 1 . . . 2 1 . . . 1 1 . . 6 . 1 . . 6 . 1 . . 2 . . 3 . Parts Lost 82 | . 1 . 7 . . . 4 . . 1 . 6 16 1 1 1 1 6 3 1 7 . . . 4 . . 2 . 20 Power 11 | . . . 1 . . . . . . 1 . . 3 1 . . . 1 1 . 1 . . . . . . 1 . 1 Propulsion 27 | . 1 . 2 . . . 2 . . . . 3 4 . 1 . . 2 1 . 4 . . . . . . . . 7 Utility 28 | . . . . . . . 2 . . . . 1 6 . . 1 . 2 . 1 2 . . . 3 . . 1 . 9 Weapon 16 | . . . 4 . . . . . . . . 2 3 . . . 1 1 1 . . . . . 1 . . . . 3 Highest Loss Streak 20 | . 1 . 5 . . . 2 . . 1 . 3 3 1 1 1 1 3 3 1 7 . . . 3 . . 2 . 20 To Critical Strikes 2 | . 1 . . . . . . . . . . 1 . . . . . . . . . . . . . . . . . . Average Slot Usage (%) 91 | . 100 99 97 100 100 100 99 99 100 92 100 98 92 91 89 75 86 87 82 79 64 88 85 80 76 80 82 79 88 78 Engine 4 | . 14 14 10 11 11 11 9 7 7 . 7 3 . . . . . 2 . . . . 4 . . . . . . . Core 1 | . . . . . . . . . . . . . 2 4 6 6 6 2 1 . . . . 5 2 . . . . . Treads 6 | . 12 . . . . . 8 7 7 7 7 19 18 6 2 . . 6 5 5 3 . . . . . . . . . Wheel 11 | . 13 28 21 22 22 22 18 15 15 15 15 2 5 13 14 14 13 6 7 11 8 . . . . . . . . . Flight 2 | . . . . . . . . . . . . . . . . . . . 1 . 6 29 26 26 22 19 21 21 23 22 Device 10 | . 14 13 11 11 11 11 10 7 7 . . 6 15 13 13 12 6 2 4 9 11 13 15 12 6 9 8 6 12 11 Storage 8 | . 14 14 11 11 11 11 9 7 7 7 7 7 6 13 13 12 6 5 5 5 4 5 5 5 4 4 4 4 4 4 Processor 9 | . . . 7 . . . 8 7 10 22 23 21 8 6 6 7 20 20 17 12 11 9 5 5 11 14 13 13 13 7 Hackware 4 | . . . . . . . . . . . . . 1 6 6 6 13 13 5 5 5 11 10 10 14 19 17 17 16 14 Protection 7 | . . . 3 11 11 11 7 22 18 15 15 8 12 6 6 5 . 2 5 2 . 5 5 5 4 4 4 1 3 3 Energy Gun 4 | . 7 . 6 . . 11 . . . . . 2 8 17 19 . 9 . . . . 2 5 5 1 . . . . . Ballistic Gun 12 | . 20 28 25 33 33 22 26 23 23 22 15 11 1 2 . 1 6 11 12 11 1 7 3 . . . . . . . Naked Turns 3 | . . . . . . . . . . . . . . . . . . . . . . . . . . . . . . 3 Heaviest Build 129 | 15 91 91 98 98 98 98 105 120 120 122 122 122 119 112 116 111 104 121 129 125 128 28 35 39 39 52 42 50 60 65 Greatest Support 86 | 20 40 24 28 28 28 28 40 24 24 24 24 64 86 40 52 56 56 56 44 44 44 30 39 48 48 46 51 51 60 61 Greatest Overweight (x) 11 | . 3 3 7 3 3 3 4 4 4 5 5 9 11 2 2 3 1 4 4 2 2 . . . . 1 . . . 1 Average Overweight (x) 1 | . 1 3 3 3 3 3 3 4 4 4 5 3 4 2 2 1 1 2 3 2 . . . . . . . . . . Largest Inventory Capacity 25 | 8 25 25 25 25 25 25 25 25 25 25 25 25 25 25 25 25 25 25 25 25 25 10 10 10 10 10 10 10 10 10 Average Capacity 22 | 8 17 25 25 25 25 25 25 25 25 25 25 25 25 25 25 25 25 25 25 25 21 10 10 10 10 10 10 10 10 9 Most Carried 25 | 6 25 25 25 25 25 25 25 25 25 25 25 25 25 25 25 25 25 25 25 25 25 10 10 10 10 10 10 10 10 10 Average Carried 22 | 6 15 24 24 24 25 25 24 24 25 24 25 23 24 24 25 24 24 24 24 24 20 9 9 10 9 9 9 9 9 9 Final Capacity 25 | 8 25 25 25 25 25 25 25 25 25 25 25 25 25 25 25 25 25 25 25 25 10 10 10 10 10 10 10 10 10 5 Final Carried 25 | 6 25 25 25 25 25 25 25 25 25 25 25 25 24 25 25 25 25 25 25 25 10 9 10 10 10 10 10 10 10 5 Class Distribution -------------------- 22% | Tank 19% | Mutant 7% | Scavenger-Tank 7% | Derelict-Tank 6% | Gunner 5% | Derelict-Mutant 5% | Hacker-Gunner 4% | Hacker-Ninja 3% | Gladiator 3% | Skirmisher 3% | Hacker-Scout 3% | Scavenger-Mutant Dominant Class ---------------- Mutant | -10/Materials Mutant | -10/Mines Skirmisher | -9/Materials Tank | -9/Mines Tank | -9/Exiles Tank | -8/Mines Tank | -8/Materials Tank | -7/Factory Tank | -7/Lower Caves Derelict-Tank | -7/Lower Caves Derelict-Tank | -7/Data Miner Scavenger-Mutant | -6/Proximity Caves Mutant | -6/Factory Tank | -6/Lower Caves Derelict-Tank | -6/Lower Caves Derelict-Mutant | -6/Zion Hacker-Gunner | -5/Proximity Caves Hacker-Gunner | -5/Factory Gunner | -5/Upper Caves Gunner | -5/Upper Caves Mutant | -5/Zhirov Hacker-Sprinter | -4/Proximity Caves Hacker-Sprinter | -4/Factory Hacker-Sprinter | -4/DSF Hacker-Sprinter | -3/Research Hacker-Ninja | -3/Testing Hacker-Ninja | -2/Research Hacker-Ninja | -2/DSF Hacker-Scout | -1/Access Hacker-Scout | -1/Command Resources | -11 -10 -10 -9 -9 -9 -8 -8 -7 -7 -7 -7 -6 -6 -6 -6 -6 -5 -5 -5 -5 -5 -4 -4 -4 -3 -3 -2 -2 -1 -1 ----------- Run | Scr Mat Min Mat Min Exi Min Mat Fac Low Low Dat Pro Fac Low Low Zio Pro Fac Upp Upp Zhi Pro Fac DSF Res Tes Res DSF Acc Com Matter Collected 8337 | 231 325 70 639 177 . 188 1128 169 352 195 . 427 530 202 213 63 230 695 416 376 523 85 49 . 211 293 109 . 349 92 Remotely 346 | . . . . . . . . . 41 . . . . 52 . . . 253 . . . . . . . . . . . . Salvage Created 11418 | 114 549 71 1191 138 . 78 1232 169 257 208 . 927 1965 261 453 . 250 1135 371 276 256 109 49 . 168 293 243 . 551 104 Parts 514 | 6 39 3 64 11 . 14 80 8 7 15 . 38 63 15 6 . 6 50 16 8 3 . 3 . 13 11 9 . 14 12 Haulers Intercepted 13 | . 1 . 3 . . . 4 . . . . . 2 . . . . . . . . . . . . . . . 3 . Recyclers Shooed 5 | . . . 1 1 . . . . . . . . 1 . . . . 2 . . . . . . . . . . . . Parts Field Recycled . | . . . . . . . . . . . . . . . . . . . . . . . . . . . . . . . Retrieved Matter . | . . . . . . . . . . . . . . . . . . . . . . . . . . . . . . . Parts Self-Destructed 111 | . . . . . . . . . 7 15 . 43 . 3 . . 7 . 26 9 1 . . . . . . . . . Prevented 4 | . . . . . . . . . . 3 . 1 . . . . . . . . . . . . . . . . . . Kills | -11 -10 -10 -9 -9 -9 -8 -8 -7 -7 -7 -7 -6 -6 -6 -6 -6 -5 -5 -5 -5 -5 -4 -4 -4 -3 -3 -2 -2 -1 -1 ------- Run | Scr Mat Min Mat Min Exi Min Mat Fac Low Low Dat Pro Fac Low Low Zio Pro Fac Upp Upp Zhi Pro Fac DSF Res Tes Res DSF Acc Com Combat Hostiles Destroyed 159 | . 13 2 16 5 . 7 23 2 3 4 . 15 22 10 3 . 5 13 5 2 . . . . 2 . . . 4 3 Melee 9 | . . . . . . . . . . . . . 9 . . . . . . . . . . . . . . . . . Guns 110 | . 13 2 16 5 . 4 23 2 3 4 . 7 8 2 . . 3 13 4 1 . . . . . . . . . . Cannons 9 | . . . . . . . . . . . . 4 1 . . . . . 1 1 . . . . 2 . . . . . AOE 22 | . . . . . . 3 . . . . . 3 . 8 1 . . . . . . . . . . . . . 4 3 Classes Destroyed 19 | 2 5 . 2 1 . . 2 . . 2 . 2 . . . . . . . 1 . . 1 . . . . . . 1 Worker 13 | . . . 4 . . . 2 . . . . . 2 . . . . 2 . . . . 1 . 1 1 . . . . Builder 1 | . 1 . . . . . . . . . . . . . . . . . . . . . . . . . . . . . Tunneler 3 | 1 . . . . . . . . . . . . 2 . . . . . . . . . . . . . . . . . Hauler 13 | . 1 . 3 . . . 4 . . . . . 2 . . . . . . . . . . . . . . . 3 . Recycler 17 | 1 1 . 2 . . . 1 1 . . . . 4 . . . . 2 . . . . . . . 2 2 . 1 . Mechanic 1 | . . . . . . . . . . . . . . . . . . . . . . . 1 . . . . . . . Watcher 11 | . 2 . 3 . . . 1 . . . . . 2 . . . . . . . . . . . 1 . . . 1 1 Swarmer 41 | . 6 1 . 3 . 7 9 . 3 1 . 1 . 3 . . . . 2 . . . . . . . . . 4 1 Cutter 2 | . . . . . . . . . . . . . . . . . . . . . . . . . . . . . . 2 Grunt 57 | . 7 1 10 1 . . 4 2 . . . 11 6 3 3 . 3 6 . . . . . . . . . . . . Brawler 5 | . . . . 1 . . . . . . . . 1 2 . . 1 . . . . . . . . . . . . . Duelist 2 | . . . . . . . . . . . . 2 . . . . . . . . . . . . . . . . . . Protector 1 | . . . . . . . . . . . . 1 . . . . . . . . . . . . . . . . . . Sentry 22 | . . . 6 . . . 7 . . 1 . . 5 1 . . . 1 . 1 . . . . . . . . . . Specialist 2 | . . . . . . . 2 . . . . . . . . . . . . . . . . . . . . . . . Hunter 11 | . . . . . . . 1 . . . . . 2 . . . 1 4 2 1 . . . . . . . . . . Programmer 14 | . . . . . . . . . . 1 . . 8 . . . . 2 1 . . . . . 2 . . . . . Behemoth 1 | . . . . . . . . . . 1 . . . . . . . . . . . . . . . . . . . . Decomposer 1 | . . . . . . . . . 1 . . . . . . . . . . . . . . . . . . . . . Packrat 5 | . . . . . . . . . 2 . . . . . . . . . 3 . . . . . . . . . . . Samaritan 3 | . . . . . . . . . . . . . . . . . . . . 3 . . . . . . . . . . Thug 1 | . . . . . . . . . . . . . . 1 . . . . . . . . . . . . . . . . Best Kill Streak 9 | 2 3 2 7 3 . 4 4 2 3 2 . 4 4 9 3 . 2 7 3 1 . . 1 . 2 3 1 . 4 4 Combat Bots Only 9 | . 3 2 4 3 . 4 4 2 3 2 . 4 2 9 3 . 2 6 3 1 . . . . 2 . . . 4 3 Max Kills in Single Turn 5 | 1 1 1 2 1 . 2 2 1 2 1 . 2 1 5 1 . 1 2 2 1 . . 1 . 1 1 1 . 4 3 Gunslinging 1 | . . . . . . . 1 . 1 . . . . . . . . 1 1 . . . . . . . . . . . Exploded 5 | . . . . . . 2 . . . . . 2 . 5 1 . . . . . . . . . . . . . 4 2 Melee 1 | . . . . . . . . . . . . . 1 . . . . . . . . . . . . . . . . . Uniques/NPCs Destroyed . | . . . . . . . . . . . . . . . . . . . . . . . . . . . . . . . Combat | -11 -10 -10 -9 -9 -9 -8 -8 -7 -7 -7 -7 -6 -6 -6 -6 -6 -5 -5 -5 -5 -5 -4 -4 -4 -3 -3 -2 -2 -1 -1 -------- Run | Scr Mat Min Mat Min Exi Min Mat Fac Low Low Dat Pro Fac Low Low Zio Pro Fac Upp Upp Zhi Pro Fac DSF Res Tes Res DSF Acc Com Damage Taken 18586 | . 540 150 1008 54 . 53 1030 50 18 508 . 1171 2839 545 363 . 402 1334 581 349 1714 40 . 384 615 415 . 772 221 3430 Core 4022 | . 70 32 235 7 . 8 215 . . 66 . 120 225 62 45 . 65 116 59 39 657 22 . 137 88 47 . 107 19 1581 Absorbed by Shields 115 | . . . . . . . . . . . . . . . . . . . . . . . . 69 . 5 . 41 . . Redirected to Shielding 166 | . . . . . . . . . . . . . . . . . . . . . . . . 80 86 . . . . . Regen/Repaired (Parts) 190 | . . . . . . . . . . . . . 169 . . . . . . . . . . . . 3 17 1 . . Core Remaining (%) 66 | 100 . 59 . . . 37 60 . . . . 73 . . . . 53 . . . . 10 . 88 . 89 . 92 . . Volleys Fired 573 | 7 69 13 59 7 . 8 78 8 8 17 . 41 64 11 22 1 9 38 24 18 8 13 7 . 29 6 . 1 1 6 Largest 3 | 2 2 2 3 3 . 3 3 3 3 3 . 3 3 3 3 1 3 3 3 3 2 2 2 . 2 1 . 1 1 1 Hottest 255 | 70 70 40 102 69 . 102 73 78 78 78 . 171 255 245 245 48 194 125 127 127 123 92 145 . 145 66 . 80 52 120 Shots Fired 1372 | 14 138 26 163 21 . 20 232 24 24 51 . 85 160 18 57 1 27 102 71 54 11 14 12 . 33 6 . 1 1 6 Gun 1203 | 14 138 26 158 21 . 18 231 24 24 51 . 61 151 10 53 . 24 76 52 36 11 10 11 . 3 . . . . . Cannon 138 | . . . . . . . . . . . . 19 9 . . 1 3 26 18 18 . 4 1 . 30 6 . . . 3 Launcher 31 | . . . 5 . . 2 1 . . . . 5 . 8 4 . . . 1 . . . . . . . . 1 1 3 Special . | . . . . . . . . . . . . . . . . . . . . . . . . . . . . . . . Kinetic 954 | 7 88 26 131 21 . 12 231 24 24 51 . 48 1 2 . 1 12 100 70 54 3 7 5 . 30 6 . . . . Thermal 374 | 7 50 . 27 . . 6 . . . . . 32 159 8 40 . 15 2 . . 8 7 7 . 3 . . . . 3 Explosive 30 | . . . 5 . . 2 1 . . . . 5 . 8 4 . . . 1 . . . . . . . . . 1 3 Electromagnetic 14 | . . . . . . . . . . . . . . . 13 . . . . . . . . . . . . 1 . . Robot Hit Streak 17 | 3 10 5 7 4 . 3 16 5 6 14 . 17 11 7 13 . 5 6 10 7 6 5 9 . 9 . . 1 . 2 Robot Miss Streak 5 | 3 4 1 3 3 . 2 4 5 1 2 . 2 4 1 2 . 2 2 2 3 1 2 1 . . . . 3 . . Penetration Max 1 | . . . . . . . . . . 1 . 1 . . . . . 1 . 1 . . . . . . . . . . Secondary Targets 23 | . 2 . 7 1 . 2 3 1 1 . . . 2 . . . 1 2 1 . . . . . . . . . . . Max Gunslinging Chain 1 | . 1 . 1 1 . 1 1 1 1 . . . 1 . . . 1 1 1 . . . . . . . . . . . Shots Hit Robots 887 | 8 91 17 90 8 . 9 145 13 13 40 . 63 141 13 32 . 20 53 45 33 9 5 6 . 10 3 3 1 15 1 Core Hits 443 | 3 28 5 43 6 . 7 49 5 8 12 . 39 55 33 21 . 19 36 19 16 6 2 2 . 6 2 2 5 6 8 Critical Kills 15 | . . . . . . . . . . . . 1 . . . . . 11 2 1 . . . . . . . . . . Critical Parts Destroyed 18 | . . . . . . . 3 . . . . . . . . . . 8 3 1 . . . . . . . . 3 . Critical Strikes 70 | . 2 . 3 . . . 3 . . . . 3 20 . 3 . 2 20 6 4 . . . . 1 . . . 3 . Burn 30 | . 2 . 3 . . . . . . . . 2 18 . 3 . 2 . . . . . . . . . . . . . Meltdown 1 | . . . . . . . . . . . . 1 . . . . . . . . . . . . . . . . . . Destroy 31 | . . . . . . . 3 . . . . . . . . . . 20 6 2 . . . . . . . . . . Blast 3 | . . . . . . . . . . . . . . . . . . . . 2 . . . . 1 . . . . . Smash 3 | . . . . . . . . . . . . . . . . . . . . . . . . . . . . . 3 . Sever 2 | . . . . . . . . . . . . . 2 . . . . . . . . . . . . . . . . . Melee Attacks 153 | . . . . . . . . . . . . 3 43 . . . . . . . . . . . 16 21 7 2 49 12 Impact 37 | . . . . . . . . . . . . . . . . . . . . . . . . . . . 1 1 29 6 Slashing 46 | . . . . . . . . . . . . 3 43 . . . . . . . . . . . . . . . . . Piercing 70 | . . . . . . . . . . . . . . . . . . . . . . . . . 16 21 6 1 20 6 Sneak Attacks 16 | . . . . . . . . . . . . . 4 . . . . . . . . . . . 2 3 2 . 5 . Combat Hostiles . | . . . . . . . . . . . . . . . . . . . . . . . . . . . . . . . Follow-up Attacks 4 | . . . . . . . . . . . . . . . . . . . . . . . . . . . . . 4 . Damage Inflicted 22532 | 96 1068 201 1486 129 . 273 2367 172 244 779 . 2014 4266 1187 1116 . 458 1039 990 718 265 154 157 . 508 356 221 61 1609 598 Guns 12869 | 96 1068 196 1447 129 . 102 2367 172 244 779 . 678 2049 139 724 . 458 651 489 407 265 154 157 . 98 . . . . . Cannons 1639 | . . . . . . . . . . . . 464 102 . . . . 259 383 311 . . . . 120 . . . . . Explosions 3674 | . . . 39 . . 171 . . . . . 577 189 1048 392 . . 129 118 . . . . . . . . 61 352 598 Melee 4343 | . . . . . . . . . . . . 295 1926 . . . . . . . . . . . 288 356 221 . 1257 . Ramming 7 | . . 5 . . . . . . . . . . . . . . . . . . . . . . 2 . . . . . Kinetic 9295 | 33 631 196 1118 129 . 73 2367 172 244 779 . 566 10 31 . . 215 910 872 718 59 . 52 . 120 . . . . . Thermal 5218 | 63 437 . 329 . . 29 . . . . . 576 2330 108 540 . 243 . . . 206 154 105 . 98 . . . . . Explosive 3222 | . . . 39 . . 171 . . . . . 577 . 1048 319 . . . 118 . . . . . . . . . 352 598 Electromagnetic 447 | . . . . . . . . . . . . . . . 257 . . 129 . . . . . . . . . 61 . . Impact 874 | . . . . . . . . . . . . . . . . . . . . . . . . . . . . . 874 . Slashing 2221 | . . . . . . . . . . . . 295 1926 . . . . . . . . . . . . . . . . . Piercing 1248 | . . . . . . . . . . . . . . . . . . . . . . . . . 288 356 221 . 383 . Highest Corruption 13 | . . . . . . . 2 . . . . . 13 13 13 13 . 4 5 5 5 5 4 4 4 5 . . 1 12 Average Corruption 6 | . . . . . . . 2 . . . . . 5 13 13 13 . 3 4 5 5 5 3 4 3 4 . . 1 2 Corruption Purged . | . . . . . . . . . . . . . . . . . . . . . . . . . . . . . . . Corruption Blocked 45 | . . . . . . . . . . . . . . . . . . . . . . . . . . 45 . . . . Effects 210 | . . . . . . . . . . . . . 77 30 25 7 . 5 21 9 6 3 . 1 11 10 . . . 5 Message Errors 53 | . . . . . . . . . . . . . 17 9 5 2 . 2 5 2 1 2 . 1 2 3 . . . 2 Matter Fused 42 | . . . . . . . . . . . . . 14 5 7 3 . 2 3 3 1 1 . . 2 1 . . . . Heat Flow Errors 26 | . . . . . . . . . . . . . 9 4 5 1 . . 2 . 1 . . . 2 1 . . . 1 Energy Discharges 32 | . . . . . . . . . . . . . 12 6 4 . . . 2 2 2 . . . 1 2 . . . 1 Parts Rejected 6 | . . . . . . . . . . . . . 4 . 1 . . . . . . . . . 1 . . . . . Data Loss (minor) 25 | . . . . . . . . . . . . . 9 3 1 1 . . 4 1 . . . . 2 3 . . . 1 Data Loss (major) 7 | . . . . . . . . . . . . . 4 1 . . . . 2 . . . . . . . . . . . Misfires 7 | . . . . . . . . . . . . . 2 1 1 . . . 2 . . . . . 1 . . . . . Alerts 7 | . . . . . . . . . . . . . 3 1 1 . . . . 1 1 . . . . . . . . . Weapon Failures 5 | . . . . . . . . . . . . . 3 . . . . 1 1 . . . . . . . . . . . Overload Shots . | . . . . . . . . . . . . . . . . . . . . . . . . . . . . . . . Overflow Damage 1067 | . . . 3 . . 20 . . . . . 10 340 22 43 . . 7 26 . . . . . 122 110 28 . 336 . Projectiles 33 | . . . . . . . . . . . . . . . . . . 7 26 . . . . . . . . . . . Explosions 183 | . . . 3 . . 20 . . . . . 10 37 22 43 . . . . . . . . . . . . . 48 . Melee 851 | . . . . . . . . . . . . . 303 . . . . . . . . . . . 122 110 28 . 288 . Knockbacks 9 | . . . . . . . . . . . . . . . . . . 3 4 . . . . . . . . . 2 . Impact 2 | . . . . . . . . . . . . . . . . . . . . . . . . . . . . . 2 . Kinetic 7 | . . . . . . . . . . . . . . . . . . 3 4 . . . . . . . . . . . Secondary . | . . . . . . . . . . . . . . . . . . . . . . . . . . . . . . . Self-Inflicted Damage 254 | . . 2 15 . . . . . . . . 76 86 . 59 . . 4 . . . . . . . . . . . 12 Shots 10 | . . . 1 . . . . . . . . 4 1 . 2 . . 1 . . . . . . . . . . . 1 Rammed 4 | . . 1 . . . . . . . . . . . . . . . . . . . . . . 3 . . . . . Targets Rammed 4 | . . 1 . . . . . . . . . . . . . . . . . . . . . . 3 . . . . . Kicked . | . . . . . . . . . . . . . . . . . . . . . . . . . . . . . . . Crushed . | . . . . . . . . . . . . . . . . . . . . . . . . . . . . . . . Highest Temperature 461 | 63 146 22 461 18 . 168 107 9 20 120 . 321 369 237 180 138 126 45 238 45 259 84 45 80 239 154 . . 5 . Average Temperature 70 | 26 34 4 129 8 . 64 18 7 8 53 . 153 117 58 43 73 33 16 27 15 76 43 18 37 79 46 . . 5 . Received Heat Transfer 2998 | . 264 45 522 . . . 234 18 . 48 . 396 420 162 135 . 187 207 . 36 . 9 . . 81 72 . . . 162 Effects 12 | . . . 5 . . . . . . . . 5 2 . . . . . . . . . . . . . . . . . Shutdowns 2 | . . . . . . . . . . . . 1 1 . . . . . . . . . . . . . . . . . Energy Bleed 5 | . . . 4 . . . . . . . . 1 . . . . . . . . . . . . . . . . . . Interference 2 | . . . . . . . . . . . . 2 . . . . . . . . . . . . . . . . . . Short Circuit 3 | . . . 1 . . . . . . . . 1 1 . . . . . . . . . . . . . . . . . Siege Activations . | . . . . . . . . . . . . . . . . . . . . . . . . . . . . . . . Robots Corrupted . | . . . . . . . . . . . . . . . . . . . . . . . . . . . . . . . Combat Hostiles . | . . . . . . . . . . . . . . . . . . . . . . . . . . . . . . . Parts Fried 6 | . . . . . . . . . . . . . . . . . . . . . . . . . . . . . 6 . Impact Corruptions 9 | . . . . . . . . . . . . . . . . . . . . . . . . . . . . . 9 . Robots Melted 11 | . . . . . . . . . . . . 1 6 . 2 . 2 . . . . . . . . . . . . . Combat Hostiles 9 | . . . . . . . . . . . . 1 4 . 2 . 2 . . . . . . . . . . . . . Parts Melted 55 | . 1 . 1 . . . . . . . . 5 39 . 5 . 3 1 . . . . . . . . . . . . Heat Transferred 14613 | 185 1406 . 1036 . . 74 . . . . . 1125 7500 300 1431 . 900 . . . 175 222 148 . 111 . . . . . Parts Sabotaged . | . . . . . . . . . . . . . . . . . . . . . . . . . . . . . . . Parts Stolen . | . . . . . . . . . . . . . . . . . . . . . . . . . . . . . . . Parts Stripped . | . . . . . . . . . . . . . . . . . . . . . . . . . . . . . . . Power Chain Reactions 2 | . . . . . . . . . . . . . . . 1 . . 1 . . . . . . . . . . . . Missiles Intercepted . | . . . . . . . . . . . . . . . . . . . . . . . . . . . . . . . Alert | -11 -10 -10 -9 -9 -9 -8 -8 -7 -7 -7 -7 -6 -6 -6 -6 -6 -5 -5 -5 -5 -5 -4 -4 -4 -3 -3 -2 -2 -1 -1 ------- Run | Scr Mat Min Mat Min Exi Min Mat Fac Low Low Dat Pro Fac Low Low Zio Pro Fac Upp Upp Zhi Pro Fac DSF Res Tes Res DSF Acc Com Peak Influence 952 | 10 255 89 451 165 . 195 553 227 . . . . 419 . . . . 304 . . . . 71 49 726 627 267 223 496 952 Initial 308 | . 6 6 . 95 . . . 151 . . . . 7 . . . . 51 . . . . 53 49 27 308 248 200 127 272 Average 173 | 6 107 6 206 60 . 88 272 206 . . . . 145 . . . . 111 . . . . 65 49 426 379 261 206 292 540 Maximum Alert Level 3 | . 1 . 2 . . . 2 1 . . . . 2 . . . . 1 . . . . . . 3 2 1 1 2 3 Low Security (%) 60 | 100 87 100 47 100 . 100 21 28 . . . . 61 . . . . 82 . . . . 100 100 15 . . 8 24 . Level 1 30 | . 12 . 47 . . . 57 71 . . . . 34 . . . . 17 . . . . . . 14 78 100 91 58 8 Level 2 9 | . . . 5 . . . 21 . . . . . 3 . . . . . . . . . . . 68 21 . . 17 75 Level 3 . | . . . . . . . . . . . . . . . . . . . . . . . . . 1 . . . . 16 Level 4 . | . . . . . . . . . . . . . . . . . . . . . . . . . . . . . . . Level 5 . | . . . . . . . . . . . . . . . . . . . . . . . . . . . . . . . High Security . | . . . . . . . . . . . . . . . . . . . . . . . . . . . . . . . Max Security . | . . . . . . . . . . . . . . . . . . . . . . . . . . . . . . . Squads Dispatched 51 | . 3 . 3 . . . 2 2 . . . 1 13 . . . . 4 . . . . . 2 7 7 2 1 2 2 Investigation 8 | . . . . . . . . . . . . . . . . . . 1 . . . . . . 3 2 1 . 1 . Extermination 12 | . . . . . . . . 1 . . . . 7 . . . . 1 . . . . . . 1 . 1 . . 1 Reinforcement 27 | . 3 . 3 . . . 2 1 . . . . 4 . . . . 2 . . . . . 2 3 4 . 1 1 1 Assault 3 | . . . . . . . . . . . . 1 1 . . . . . . . . . . . . 1 . . . . Garrison 1 | . . . . . . . . . . . . . 1 . . . . . . . . . . . . . . . . . Intercept . | . . . . . . . . . . . . . . . . . . . . . . . . . . . . . . . Searches Triggered 3 | . . . . . . . . . . . . . . . . . . . . . . . . . 2 1 . . . . Data Miner Redirects 3 | . . . . . . . . . . . . . 1 . . . . 1 . . . . . . . 1 . . . . Construction Impeded 4 | . . . 1 . . . 1 . . . . . 1 . . . . . . . . . . . 1 . . . . . Haulers Reinforced 1 | . . . . . . . . . . . . . . . . . . . . . . . . . . . . . 1 . Active Scanning Responses . | . . . . . . . . . . . . . . . . . . . . . . . . . . . . . . . Cargo Convoy Interrupts . | . . . . . . . . . . . . . . . . . . . . . . . . . . . . . . . Stealth | -11 -10 -10 -9 -9 -9 -8 -8 -7 -7 -7 -7 -6 -6 -6 -6 -6 -5 -5 -5 -5 -5 -4 -4 -4 -3 -3 -2 -2 -1 -1 --------- Run | Scr Mat Min Mat Min Exi Min Mat Fac Low Low Dat Pro Fac Low Low Zio Pro Fac Upp Upp Zhi Pro Fac DSF Res Tes Res DSF Acc Com Distress Signals 23 | . 2 1 4 . . . 2 . . . . 1 2 . . . . . . . . . . . 1 5 . . 3 2 Communications Jammed 8 | . . . . . . . . . . . . . . . . . . . . . . . . . 8 . . . . . Distress Signals 8 | . . . . . . . . . . . . . . . . . . . . . . . . . 8 . . . . . Times Spotted 574 | . 26 8 24 5 . 7 31 5 3 6 . 22 37 10 3 . 9 19 8 5 2 4 1 7 49 35 . 4 20 224 Peak Tracking Total 204 | . 5 3 6 3 . 4 7 3 3 3 . 7 5 9 3 . 5 4 4 3 3 5 . 6 15 17 1 4 6 204 Tactical Retreats 41 | . 2 1 2 . . . 3 . . 1 . 5 . . . . . . . . . 2 . . 13 7 . 1 2 2 Traps | -11 -10 -10 -9 -9 -9 -8 -8 -7 -7 -7 -7 -6 -6 -6 -6 -6 -5 -5 -5 -5 -5 -4 -4 -4 -3 -3 -2 -2 -1 -1 ------- Run | Scr Mat Min Mat Min Exi Min Mat Fac Low Low Dat Pro Fac Low Low Zio Pro Fac Upp Upp Zhi Pro Fac DSF Res Tes Res DSF Acc Com Traps Triggered 20 | . . . . . . . 2 . . . . . 5 . . . . 3 . . . . 2 2 1 2 . 2 1 . Indirectly . | . . . . . . . . . . . . . . . . . . . . . . . . . . . . . . . Trap Hack Attempts . | . . . . . . . . . . . . . . . . . . . . . . . . . . . . . . . Triggered . | . . . . . . . . . . . . . . . . . . . . . . . . . . . . . . . Disarmed . | . . . . . . . . . . . . . . . . . . . . . . . . . . . . . . . Reprogrammed . | . . . . . . . . . . . . . . . . . . . . . . . . . . . . . . . Reused . | . . . . . . . . . . . . . . . . . . . . . . . . . . . . . . . Traps Extracted . | . . . . . . . . . . . . . . . . . . . . . . . . . . . . . . . Installed . | . . . . . . . . . . . . . . . . . . . . . . . . . . . . . . . Triggered 2 | . . . . . . . . . . 1 . . . . . . 1 . . . . . . . . . . . . . Machines | -11 -10 -10 -9 -9 -9 -8 -8 -7 -7 -7 -7 -6 -6 -6 -6 -6 -5 -5 -5 -5 -5 -4 -4 -4 -3 -3 -2 -2 -1 -1 ---------- Run | Scr Mat Min Mat Min Exi Min Mat Fac Low Low Dat Pro Fac Low Low Zio Pro Fac Upp Upp Zhi Pro Fac DSF Res Tes Res DSF Acc Com Machines Disabled 24 | . . . . . . . 2 . . . . 1 5 2 . . . 8 . . 2 . . . 1 1 . . . 2 Max in Single Turn 4 | . . . . . . . 1 . . . . 1 3 1 . . . 4 . . 1 . . . 1 1 . . . 2 Garrison Access 3 | . . . . . . . . . . . . . . . . . . . . . . . . . . 1 . . 2 . Phase Generator 1 | . . . . . . . . . . . . . . . . . . . . . . . . . . . . . . 1 Machines Sabotaged . | . . . . . . . . . . . . . . . . . . . . . . . . . . . . . . . Garrisons Compromised . | . . . . . . . . . . . . . . . . . . . . . . . . . . . . . . . Overloaded Fab Kills . | . . . . . . . . . . . . . . . . . . . . . . . . . . . . . . . Hacking | -11 -10 -10 -9 -9 -9 -8 -8 -7 -7 -7 -7 -6 -6 -6 -6 -6 -5 -5 -5 -5 -5 -4 -4 -4 -3 -3 -2 -2 -1 -1 --------- Run | Scr Mat Min Mat Min Exi Min Mat Fac Low Low Dat Pro Fac Low Low Zio Pro Fac Upp Upp Zhi Pro Fac DSF Res Tes Res DSF Acc Com Machines Accessed 74 | . 4 1 3 . 2 . 1 1 . . 4 1 6 . . . . 5 1 . 5 . 4 . 9 11 3 . 9 4 Terminals 40 | . 4 . 3 . . . 1 1 . . . . 2 . . . . 3 . . . . 2 . 6 6 2 . 6 4 Fabricators 9 | . . . . . . . . . . . . . 2 . . . . 1 . . . . . . 3 2 1 . . . Repair Stations 6 | . . . . . . . . . . . . . 2 . . . . 1 . . . . 1 . . 1 . . 1 . Recycling Units 1 | . . . . . . . . . . . . . . . . . . . . . . . 1 . . . . . . . Scanalyzers 1 | . . . . . . . . . . . . . . . . . . . . . . . . . . 1 . . . . Garrison Access 3 | . . . . . . . . . . . . . . . . . . . . . . . . . . 1 . . 2 . Total Hacks 206 | . 12 1 13 . 2 . 3 1 . . 27 1 14 . . . . 10 1 . 27 . 8 . 23 27 7 . 19 10 Successful 139 | . 5 1 4 . 2 . 2 1 . . 27 1 8 . . . . 8 1 . 27 . 4 . 7 20 4 . 10 7 Failed 67 | . 7 . 9 . . . 1 . . . . . 6 . . . . 2 . . . . 4 . 16 7 3 . 9 3 Catastrophic 7 | . 1 . . . . . 1 . . . . . . . . . . . . . . . . . 2 1 . . 1 1 Database Lockouts . | . . . . . . . . . . . . . . . . . . . . . . . . . . . . . . . Manual 40 | . 9 . 8 . . . 2 . . . . . 4 . . . . 1 . . . . . . 7 3 . . 3 3 Terminals 102 | . 12 . 13 . . . 3 1 . . . . 5 . . . . 6 . . . . 3 . 13 16 5 . 15 10 Fabricators 21 | . . . . . . . . . . . . . 3 . . . . 2 . . . . . . 10 4 2 . . . Repair Stations 14 | . . . . . . . . . . . . . 6 . . . . 2 . . . . 3 . . 2 . . 1 . Recycling Units 2 | . . . . . . . . . . . . . . . . . . . . . . . 2 . . . . . . . Scanalyzers 4 | . . . . . . . . . . . . . . . . . . . . . . . . . . 4 . . . . Garrison Access 4 | . . . . . . . . . . . . . . . . . . . . . . . . . . 1 . . 3 . Terminal Hacks 106 | . 5 1 4 . 2 . 2 1 . . 27 1 1 . . . . 4 1 . 27 . 2 . 2 10 2 . 7 7 Record 31 | . . . . . 2 . . . . . 11 1 . . . . . . . . 15 . . . 1 1 . . . . Part Schematic 18 | . . . . . . . . . . . 9 . . . . . . 3 . . 4 . . . . 1 1 . . . Robot Schematic 4 | . . . . . . . . . . . 4 . . . . . . . . . . . . . . . . . . . Robot Analysis 10 | . 4 . 2 . . . . . . . . . . . . . . . . . 4 . . . . . . . . . Prototype ID Bank 7 | . . . . . . . . . . . 3 . . . . . . . . . 4 . . . . . . . . . Open Door 4 | . . 1 . . . . . . . . . . . . . . . . 1 . . . . . . 1 . . 1 . Open DSF 3 | . . . . . . . . 1 . . . . . . . . . . . . . . 1 . . . 1 . . . Level Access Points 3 | . . . . . . . . . . . . . . . . . . . . . . . . . . 1 . . 1 1 Branch Access Points 4 | . . . . . . . . . . . . . 1 . . . . . . . . . . . 1 1 . . 1 . Emergency Access Points 1 | . . . . . . . . . . . . . . . . . . . . . . . . . . . . . . 1 Terminal Index 3 | . . . . . . . . . . . . . . . . . . . . . . . . . . 1 . . 1 1 Alert Level 5 | . . . 1 . . . 1 . . . . . . . . . . 1 . . . . 1 . . . . . . 1 Unreport Threat 2 | . . . 1 . . . 1 . . . . . . . . . . . . . . . . . . . . . . . Locate Traps 1 | . . . . . . . . . . . . . . . . . . . . . . . . . . . . . . 1 Recall Extermination 1 | . . . . . . . . . . . . . . . . . . . . . . . . . . . . . 1 . Hauler Manifests 2 | . 1 . . . . . . . . . . . . . . . . . . . . . . . . . . . 1 . Registered Components 1 | . . . . . . . . . . . . . . . . . . . . . . . . . . 1 . . . . Registered Prototypes 2 | . . . . . . . . . . . . . . . . . . . . . . . . . . 1 . . . 1 Zone Layout 1 | . . . . . . . . . . . . . . . . . . . . . . . . . . . . . 1 . Protovariant Controls 2 | . . . . . . . . . . . . . . . . . . . . . . . . . . 2 . . . . Disengage Seal 1 | . . . . . . . . . . . . . . . . . . . . . . . . . . . . . . 1 Fabricator Hacks 15 | . . . . . . . . . . . . . 2 . . . . 2 . . . . . . 5 4 2 . . . Load Schematic 8 | . . . . . . . . . . . . . 1 . . . . 1 . . . . . . 3 2 1 . . . Build 7 | . . . . . . . . . . . . . 1 . . . . 1 . . . . . . 2 2 1 . . . Repair Station Hacks 9 | . . . . . . . . . . . . . 4 . . . . 2 . . . . 1 . . 1 . . 1 . Scan Component 4 | . . . . . . . . . . . . . 2 . . . . 1 . . . . 1 . . . . . . . Repair 2 | . . . . . . . . . . . . . 2 . . . . . . . . . . . . . . . . . Refit 3 | . . . . . . . . . . . . . . . . . . 1 . . . . . . . 1 . . 1 . Recycling Unit Hacks 1 | . . . . . . . . . . . . . . . . . . . . . . . 1 . . . . . . . Retrieve Components 1 | . . . . . . . . . . . . . . . . . . . . . . . 1 . . . . . . . Scanalyzer 3 | . . . . . . . . . . . . . . . . . . . . . . . . . . 3 . . . . Insert Component 2 | . . . . . . . . . . . . . . . . . . . . . . . . . . 2 . . . . Analyze 1 | . . . . . . . . . . . . . . . . . . . . . . . . . . 1 . . . . Garrison Access Hacks 3 | . . . . . . . . . . . . . . . . . . . . . . . . . . 1 . . 2 . Seal Access 3 | . . . . . . . . . . . . . . . . . . . . . . . . . . 1 . . 2 . Unauthorized Hacks 2 | . . . . . . . . . . . . . 1 . . . . . . . . . . . . 1 . . . . Terminals 2 | . . . . . . . . . . . . . 1 . . . . . . . . . . . . 1 . . . . Track 1 | . . . . . . . . . . . . . . . . . . . . . . . . . . 1 . . . . Botnet 1 | . . . . . . . . . . . . . 1 . . . . . . . . . . . . . . . . . Fabricators . | . . . . . . . . . . . . . . . . . . . . . . . . . . . . . . . Repair Stations . | . . . . . . . . . . . . . . . . . . . . . . . . . . . . . . . Recycling Units . | . . . . . . . . . . . . . . . . . . . . . . . . . . . . . . . Scanalyzers . | . . . . . . . . . . . . . . . . . . . . . . . . . . . . . . . Garrison Access . | . . . . . . . . . . . . . . . . . . . . . . . . . . . . . . . Data Cores Recovered . | . . . . . . . . . . . . . . . . . . . . . . . . . . . . . . . Used . | . . . . . . . . . . . . . . . . . . . . . . . . . . . . . . . Hacking Detections 49 | . 4 . 3 . . . 1 1 . . . . 5 . . . . 5 . . . . 3 . 9 7 2 . 6 3 Full Trace Events 7 | . . . . . . . . . . . . . . . . . . 1 . . . . . . 3 2 1 . . . Feedback Events . | . . . . . . . . . . . . . . . . . . . . . . . . . . . . . . . Feedback Blocked . | . . . . . . . . . . . . . . . . . . . . . . . . . . . . . . . Robot Schematics Acquired 8 | . . . . . . . . . . . 4 . . . . 3 . . . . . . . . . 1 . . . . Robots Built . | . . . . . . . . . . . . . . . . . . . . . . . . . . . . . . . Authchips . | . . . . . . . . . . . . . . . . . . . . . . . . . . . . . . . Time . | . . . . . . . . . . . . . . . . . . . . . . . . . . . . . . . Total Robot Build Rating . | . . . . . . . . . . . . . . . . . . . . . . . . . . . . . . . Part Schematics Acquired 36 | . . . . . . . . . . . 9 . . . . 15 . 3 . . 4 . . . . 4 1 . . . Parts Built 8 | . . . . . . . . . . . . . 2 . . . . 1 . . . . . . 1 2 2 . . . Authchips . | . . . . . . . . . . . . . . . . . . . . . . . . . . . . . . . Time 595 | . . . . . . . . . . . . . 95 . . . . 84 . . . . . . 124 228 64 . . . Total Part Build Rating 49 | . . . . . . . . . . . . . 10 . . . . 6 . . . . . . 7 10 16 . . . Parts Repaired 2 | . . . . . . . . . . . . . 2 . . . . . . . . . . . . . . . . . Time 69 | . . . . . . . . . . . . . 69 . . . . . . . . . . . . . . . . . Parts Recycled . | . . . . . . . . . . . . . . . . . . . . . . . . . . . . . . . Recycled Matter . | . . . . . . . . . . . . . . . . . . . . . . . . . . . . . . . Retrieved Matter . | . . . . . . . . . . . . . . . . . . . . . . . . . . . . . . . Retrieved Components 1 | . . . . . . . . . . . . . . . . . . . . . . . 1 . . . . . . . Parts Scanalyzed 1 | . . . . . . . . . . . . . . . . . . . . . . . . . . 1 . . . . Part Schematics Acquired 1 | . . . . . . . . . . . . . . . . . . . . . . . . . . 1 . . . . Parts Damaged . | . . . . . . . . . . . . . . . . . . . . . . . . . . . . . . . Bothacking | -11 -10 -10 -9 -9 -9 -8 -8 -7 -7 -7 -7 -6 -6 -6 -6 -6 -5 -5 -5 -5 -5 -4 -4 -4 -3 -3 -2 -2 -1 -1 ------------ Run | Scr Mat Min Mat Min Exi Min Mat Fac Low Low Dat Pro Fac Low Low Zio Pro Fac Upp Upp Zhi Pro Fac DSF Res Tes Res DSF Acc Com Used RIF Installer . | . . . . . . . . . . . . . . . . . . . . . . . . . . . . . . . Robots Hacked . | . . . . . . . . . . . . . . . . . . . . . . . . . . . . . . . Non-combat . | . . . . . . . . . . . . . . . . . . . . . . . . . . . . . . . Combat . | . . . . . . . . . . . . . . . . . . . . . . . . . . . . . . . Robot Hacks Applied . | . . . . . . . . . . . . . . . . . . . . . . . . . . . . . . . Relay Couplers Released . | . . . . . . . . . . . . . . . . . . . . . . . . . . . . . . . Fabnet Peak Effective % . | . . . . . . . . . . . . . . . . . . . . . . . . . . . . . . . Robots Rewired 2 | . . . . . . . . . . . . 2 . . . . . . . . . . . . . . . . . . Allies Hacked . | . . . . . . . . . . . . . . . . . . . . . . . . . . . . . . . Hacks Repelled . | . . . . . . . . . . . . . . . . . . . . . . . . . . . . . . . Allies | -11 -10 -10 -9 -9 -9 -8 -8 -7 -7 -7 -7 -6 -6 -6 -6 -6 -5 -5 -5 -5 -5 -4 -4 -4 -3 -3 -2 -2 -1 -1 -------- Run | Scr Mat Min Mat Min Exi Min Mat Fac Low Low Dat Pro Fac Low Low Zio Pro Fac Upp Upp Zhi Pro Fac DSF Res Tes Res DSF Acc Com Total Allies 11 | . . 3 . . . . . . . . . 3 . . . 5 . . . . . . . . . . . . . . Largest Group 5 | . . 3 . . . . . . . . . 3 . . . 5 5 4 . . . . . . . . . . . . Highest-Rated Group 146 | . . 40 . . . . . . . . . 139 . . . 146 146 118 . . . . . . . . . . . . Highest-Rated Ally 89 | . . 16 . . . . . . . . . 89 . . . 31 31 31 . . . . . . . . . . . . Total Orders 14 | . . . . . . . . . . . . . . . . . . . 4 2 . . 1 . . . . . 7 . EXPLORE 6 | . . . . . . . . . . . . . . . . . . . . . . . . . . . . . 6 . RETURN 8 | . . . . . . . . . . . . . . . . . . . 4 2 . . 1 . . . . . 1 . Ally Attacks 155 | . . 21 . . . . . . . . . 16 . . . . 33 21 25 32 7 . . . . . . . . . Total Damage 2770 | . . 124 . . . . . . . . . 463 . . . . 567 444 410 572 190 . . . . . . . . . Kills 20 | . . 3 . . . . . . . . . 4 . . . . 5 3 3 2 . . . . . . . . . . Allies Corrupted 1 | . . . . . . . . . . . . . . . . . . . . 1 . . . . . . . . . . Allies Melted . | . . . . . . . . . . . . . . . . . . . . . . . . . . . . . . . Intel | -11 -10 -10 -9 -9 -9 -8 -8 -7 -7 -7 -7 -6 -6 -6 -6 -6 -5 -5 -5 -5 -5 -4 -4 -4 -3 -3 -2 -2 -1 -1 ------- Run | Scr Mat Min Mat Min Exi Min Mat Fac Low Low Dat Pro Fac Low Low Zio Pro Fac Upp Upp Zhi Pro Fac DSF Res Tes Res DSF Acc Com Robot Analysis Total 10 | . 4 . 2 . . . . . . . . . . . . . . . . . 4 . . . . . . . . . Derelict Logs Recovered 14 | . . 1 . 1 . . . . 2 . . 3 . 1 1 2 . . 1 2 . . . . . . . . . . Drone Launches 17 | . . . . . . . . . . . . . . . . . . . 8 2 . . 1 . . . . . 6 . Drone Recoveries 10 | . . . . . . . . . . . . . . . . . . . 6 2 . . 1 . . . . . 1 . Decoded 0b10 Intel 10 | . . . . . . . . . . . . . . . . . . 10 . . . . . . . . . . . . Patrols 2 | . . . . . . . . . . . . . . . . . . 2 . . . . . . . . . . . . Reinforcements 3 | . . . . . . . . . . . . . . . . . . 3 . . . . . . . . . . . . Guards 5 | . . . . . . . . . . . . . . . . . . 5 . . . . . . . . . . . . Exploration | -11 -10 -10 -9 -9 -9 -8 -8 -7 -7 -7 -7 -6 -6 -6 -6 -6 -5 -5 -5 -5 -5 -4 -4 -4 -3 -3 -2 -2 -1 -1 ------------- Run | Scr Mat Min Mat Min Exi Min Mat Fac Low Low Dat Pro Fac Low Low Zio Pro Fac Upp Upp Zhi Pro Fac DSF Res Tes Res DSF Acc Com Turns Passed 22677 | 36 1202 986 1189 932 534 665 914 362 1198 760 134 1574 3571 719 749 1415 559 1073 669 427 354 88 180 39 643 419 260 47 727 252 Spaces Moved 17629 | 12 679 676 657 647 382 456 462 213 775 470 82 625 1398 542 533 1189 447 630 399 280 383 227 423 87 1487 943 330 92 1518 585 Core 12 | . . . . . . . . . . . . . . . . . . . . . . . . . . . . . . 12 Treads 1292 | . 249 . . . . . . . . . . 414 629 . . . . . . . . . . . . . . . . . Legs 66 | 12 52 . . . . . . . . . . . 2 . . . . . . . . . . . . . . . . . Wheels 10370 | . 378 676 657 647 382 456 462 213 775 470 82 211 767 542 533 1189 447 630 399 280 174 . . . . . . . . . Hover . | . . . . . . . . . . . . . . . . . . . . . . . . . . . . . . . Flight 5889 | . . . . . . . . . . . . . . . . . . . . . 209 227 423 87 1487 943 330 92 1518 573 Fastest Speed 15 | 120 100 135 135 140 140 140 123 150 150 150 165 150 125 125 123 108 115 115 130 130 24 24 24 15 15 27 27 27 20 20 Average Speed 107 | 120 137 135 141 140 140 140 145 150 150 150 165 227 205 125 124 113 115 142 145 130 72 24 24 17 25 29 27 27 20 22 Slowest Speed 610 | 120 190 135 195 140 140 140 150 150 150 165 165 545 610 125 125 145 115 160 160 130 130 24 25 25 31 104 27 27 31 100 Overloaded Moves 483 | . . . . . . . . . . . . . . . . . . . . . . . . 65 8 393 16 . 1 . Propulsion Burnouts . | . . . . . . . . . . . . . . . . . . . . . . . . . . . . . . . Robots Hopped 42 | . . . . . . . . . . . . . . . . . . . . . . . . . 8 2 . . 7 25 Cave-ins Triggered . | . . . . . . . . . . . . . . . . . . . . . . . . . . . . . . . Exploration Rate (%) 58 | 2 91 97 57 98 78 96 42 6 83 55 74 75 32 67 53 85 59 17 58 62 96 48 12 90 42 77 9 90 47 23 Regions Visited 30 Branch Regions 18 Pre-discovered Areas 8 | . . 2 . . . . . . . . 1 . . . . 2 . . . . 3 . . . . . . . . . Known Exits Taken 21 | . . . . . . . 1 1 1 1 1 1 1 1 1 1 1 1 1 1 1 1 1 . 1 1 1 . 1 . Unknown Exits Taken 7 | 1 1 1 1 1 1 1 . . . . . . . . . . . . . . . . . . . . . . . . Scrap Searched 31 | . . 2 . 4 . 1 . . 2 3 . 3 . 3 4 3 2 . 2 2 . . . . . . . . . . Spaces Dug 146 | . . . 8 . . . 7 . . . . . 6 . 8 . . 1 . . . 2 2 . 33 16 3 1 25 34 Terrain Destroyed 541 | . . . 39 . . 23 7 . . . . 35 69 29 33 . 2 15 26 17 . 5 3 . 42 16 3 1 51 125 Melee 70 | . . . . . . . . . . . . . 4 . . . . . . . . . . . 13 16 3 1 25 8 Projectile 90 | . . . . . . . . . . . . 3 3 . . . 2 11 15 17 . 5 3 . 29 . . . . 2 AOE 381 | . . . 39 . . 23 7 . . . . 32 62 29 33 . . 4 11 . . . . . . . . . 26 115 Terrain Rammed . | . . . . . . . . . . . . . . . . . . . . . . . . . . . . . . . Walls Destroyed . | . . . . . . . . . . . . . . . . . . . . . . . . . . . . . . . Machines Disabled . | . . . . . . . . . . . . . . . . . . . . . . . . . . . . . . . Actions | -11 -10 -10 -9 -9 -9 -8 -8 -7 -7 -7 -7 -6 -6 -6 -6 -6 -5 -5 -5 -5 -5 -4 -4 -4 -3 -3 -2 -2 -1 -1 --------- Run | Scr Mat Min Mat Min Exi Min Mat Fac Low Low Dat Pro Fac Low Low Zio Pro Fac Upp Upp Zhi Pro Fac DSF Res Tes Res DSF Acc Com Total 20173 | 19 823 729 802 659 381 467 622 250 799 501 81 706 1896 564 572 1255 473 730 435 302 457 244 491 109 1667 1034 488 107 1856 654 Wait 1136 | . 32 28 28 2 . 2 19 10 9 . . 5 286 . 9 23 8 16 2 1 8 . 41 13 102 33 145 . 246 68 Move 17529 | 11 678 675 656 646 381 455 461 212 774 469 81 624 1397 541 532 1188 446 629 398 279 382 226 422 86 1470 938 329 91 1505 547 Hop 28 | . . . . . . . . . . . . . . . . . . . . . . . . . 8 2 . . 5 13 Pick Up 157 | . 21 4 17 1 . . 17 5 . 3 . 6 18 1 1 7 1 7 3 2 15 . 4 . 12 2 1 2 6 1 Fast Attach 131 | 1 1 . 4 . . . 7 . . 2 . 3 27 4 2 12 2 14 1 . 15 . 5 2 7 4 1 5 11 1 Attach 72 | . 1 1 9 . . . 4 3 . 1 . 7 10 . . . 1 4 2 . 7 1 1 . 6 2 1 . 9 2 Detach 33 | . 1 . 1 . . . . 1 . 1 . 3 3 1 . 1 . 1 2 . 2 1 3 . 2 2 . . 8 . Swap 114 | . 11 1 11 1 . 2 11 4 5 2 . 6 17 4 3 4 2 5 2 1 . 3 1 . 2 1 2 2 6 5 Drop 222 | . 9 6 17 2 . . 25 7 3 6 . 3 31 2 2 19 4 16 1 1 19 . 7 2 10 6 3 2 16 3 Fire 573 | 7 69 13 59 7 . 8 78 8 8 17 . 41 64 11 22 1 9 38 24 18 8 13 7 . 29 6 . 1 1 6 Melee 136 | . . . . . . . . . . . . 3 43 . . . . . . . . . . . 16 21 6 1 38 8 Ram 4 | . . 1 . . . . . . . . . . . . . . . . . . . . . . 3 . . . . . Kick . | . . . . . . . . . . . . . . . . . . . . . . . . . . . . . . . Crush . | . . . . . . . . . . . . . . . . . . . . . . . . . . . . . . . Escape Stasis 31 | . . . . . . . . . . . . . . . . . . . . . . . . 6 . 17 . 3 5 . Rewire 7 | . . . . . . . . . . . . 5 . . 1 . . . . . 1 . . . . . . . . . Trap . | . . . . . . . . . . . . . . . . . . . . . . . . . . . . . . . Miscellaneous . | . . . . . . . . . . . . . . . . . . . . . . . . . . . . . . . Route ------- -11/Scrapyard -10/Materials (discovered 4 exits: *Mat x2 / *Min x2) -10/Mines (discovered 2 exits: *Mat x2) -9/Materials (discovered 3 exits: *Mat / [*Min] / [*Sto]) -9/Mines (discovered 3 exits: *Mat x2 / *Exi) -9/Exiles -8/Mines (discovered 2 exits: *Mat x2) -8/Materials -7/Factory -7/Lower Caves -7/Lower Caves (discovered 2 exits: *Fac / *Dat) -7/Data Miner -6/Proximity Caves -6/Factory (discovered 4 exits: *Fac x2 / *Low x2) -6/Lower Caves -6/Lower Caves (discovered 2 exits: *Fac / *Zio) -6/Zion -5/Proximity Caves -5/Factory (discovered 5 exits: Fac x2 / *Upp x2 / Ext) -5/Upper Caves -5/Upper Caves (discovered 2 exits: *Fac / *Zhi) -5/Zhirov -4/Proximity Caves -4/Factory (discovered 2 exits: Res / DSF) -4/DSF -3/Research (discovered 4 exits: *Res / Arm / *Tes x2) -3/Testing -2/Research (discovered 2 exits: *Acc / DSF) -2/DSF -1/Access (discovered 2 exits: *Sur / *Com) -1/Command (discovered 2 exits: Sur x2) History --------- Turn | Location | Event 23 | -11/Scrapyard | Discovered new exit (range 2) 37 | -11/Scrapyard | Entered Materials 305 | -10/Materials | Build established: Mutant 548 | -10/Materials | Discovered new exit (range 8) 803 | -10/Materials | Discovered new exit (range 5) 837 | -10/Materials | Discovered new exit (range 12) 1101 | -10/Materials | Discovered new exit (range 10) 1239 | -10/Materials | Entered Mines 1267 | -10/Mines | Found the Drone Emporium 1276 | -10/Mines | Found Prototype Device 1421 | -10/Mines | YI-UF0 nonchalantly dropped a Grenade Launcher on the ground 1536 | -10/Mines | Assisted by bots powering up and referring to "LRC-V3" 1816 | -10/Mines | Assembled infested the area 1915 | -10/Mines | Discovered new exit (range 10) 2048 | -10/Mines | Learned location of Storage (-9) 2051 | -10/Mines | Discovered new exit (range 6) 2225 | -10/Mines | Entered Materials 2225 | -9/Materials | Evolved 2 slots: Utility x1, Weapon x1 2491 | -9/Materials | Discovered new exit (range 4) 2566 | -9/Materials | Discovered new exit (range 18) 2786 | -9/Materials | Build established: Skirmisher 2976 | -9/Materials | Core integrity fell below 50% 3016 | -9/Materials | Lost 5 parts (1p1n3w) 3310 | -9/Materials | Build established: Scavenger-Tank 3390 | -9/Materials | Discovered new exit (range 13) 3414 | -9/Materials | Entered Mines 3447 | -9/Mines | Met a Derelict bent on vengeance 3688 | -9/Mines | Deemed a non-threat by the Exiles lab entrance 3688 | -9/Mines | Discovered new exit (range 5) 4023 | -9/Mines | Discovered new exit (range 9) 4152 | -9/Mines | Build established: Tank 4180 | -9/Mines | Discovered new exit (range 5) 4183 | -9/Mines | Learned Materials stockpile data 4346 | -9/Mines | Entered Exiles 4346 | -9/Exiles | Found Exiles lab abandoned 4869 | -9/Exiles | Discovered new exit (range 10) 4880 | -9/Exiles | Entered Mines 5175 | -8/Mines | Discovered new exit (range 12) 5408 | -8/Mines | Discovered new exit (range 14) 5545 | -8/Mines | Entered Materials 5545 | -8/Materials | Evolved 2 slots: Propulsion x1, Utility x1 6420 | -8/Materials | Discovered new exit (range 16) 6458 | -8/Materials | Identified exit to Factory 6459 | -8/Materials | Entered Factory 6459 | -7/Factory | Evolved 2 slots: Utility x2 6462 | -7/Factory | Identified Decoy Drone Bay 6713 | -7/Factory | Discovered new exit (range 15) 6796 | -7/Factory | Identified exit to Lower Caves 6821 | -7/Factory | Entered Lower Caves 6971 | -7/Lower Caves | Encountered a Warlord checkpoint 7053 | -7/Lower Caves | Identified exit to Lower Caves 8019 | -7/Lower Caves | Entered another Lower Caves area 8027 | -7/Lower Caves | Attracted the attention of an 0b10 checkpoint 8036 | -7/Lower Caves | Discovered new exit (range 9) 8431 | -7/Lower Caves | Build established: Derelict-Tank 8714 | -7/Lower Caves | Discovered new exit (range 16) 8719 | -7/Lower Caves | Spotted B-75 Beast 8741 | -7/Lower Caves | Destroyed B-75 Beast 8777 | -7/Lower Caves | Identified exit to Data Miner 8779 | -7/Lower Caves | Entered Data Miner 8779 | -7/Data Miner | Discovered new exit (range 6) 8804 | -7/Data Miner | Met Data Miner 8862 | -7/Data Miner | Learned location of Section 7 (-2) 8862 | -7/Data Miner | Acquired the access code to Warlord's prototype stash 8874 | -7/Data Miner | Received God Mode back door access code from Data Miner 8911 | -7/Data Miner | Identified exit to Proximity Caves 8913 | -7/Data Miner | Entered Proximity Caves 8993 | -6/Proximity Caves | Attracted the attention of an 0b10 outpost 9036 | -6/Proximity Caves | Lost 3 parts (2n1u) 9096 | -6/Proximity Caves | Found Alien Artifact 9520 | -6/Proximity Caves | Learned Factory garrison access intel 9555 | -6/Proximity Caves | Identified exit to Factory 9728 | -6/Proximity Caves | Build established: Scavenger-Mutant 10382 | -6/Proximity Caves | Build established: Mutant 10487 | -6/Proximity Caves | Entered Factory 10487 | -6/Factory | Evolved 2 slots: Propulsion x1, Utility x1 10488 | -6/Factory | Loaded intel: 3 garrison access locations 11234 | -6/Factory | Repaired Greatsword 11677 | -6/Factory | Build established: Gladiator 12684 | -6/Factory | Fabricated Adv. Signal Interpreter? 12686 | -6/Factory | Garrison activated, responded to threat 13122 | -6/Factory | Discovered new exit (range 16) 13166 | -6/Factory | Lost 3 parts (1n2u) 13189 | -6/Factory | Identified exit to Factory 13538 | -6/Factory | Discovered exit to Factory (range 16) 13592 | -6/Factory | System corruption reached 10% 13723 | -6/Factory | Identified exit to Lower Caves 13966 | -6/Factory | Repaired Thermic Laser 13987 | -6/Factory | First assault squad dispatched 14014 | -6/Factory | Incoming assault squad redirected 14058 | -6/Factory | Entered Lower Caves 14102 | -6/Lower Caves | Encountered a Warlord checkpoint 14193 | -6/Lower Caves | Learned location of 2 exits from Factory 14301 | -6/Lower Caves | Ambushed by wild Derelicts 14340 | -6/Lower Caves | Build established: Scavenger-Tank 14360 | -6/Lower Caves | Attracted the attention of an 0b10 outpost 14402 | -6/Lower Caves | Destroyed 9 combat bots 14435 | -6/Lower Caves | Discovered new exit (range 13) 14450 | -6/Lower Caves | Identified exit to Lower Caves 14667 | -6/Lower Caves | Build established: Tank 14731 | -6/Lower Caves | Spotted B-75 Beast 14777 | -6/Lower Caves | Entered another Lower Caves area 14798 | -6/Lower Caves | Discovered exit to Factory (range 16) 15071 | -6/Lower Caves | Build established: Derelict-Tank 15174 | -6/Lower Caves | Discovered new exit (range 9) 15330 | -6/Lower Caves | Learned 8 Factory zone layouts 15525 | -6/Lower Caves | Identified exit to Zion 15526 | -6/Lower Caves | Entered Zion 15632 | -6/Zion | Discovered new exit (range 15) 15647 | -6/Zion | Identified exit to Proximity Caves 15678 | -6/Zion | Gained Derelict followers 15707 | -6/Zion | System corruption cleaned by Quarantine Array 15850 | -6/Zion | Build established: Derelict-Mutant 15926 | -6/Zion | Found Prototype Device 15979 | -6/Zion | Given A8's code to call for help 16153 | -6/Zion | Given the Hacking Drone Bay 16153 | -6/Zion | Found Prototype Device 16392 | -6/Zion | Gained Derelict followers 16758 | -6/Zion | Found Prototype Processor 16758 | -6/Zion | Identified Exp. Signal Interpreter 16762 | -6/Zion | Found Exp. Signal Interpreter 16768 | -6/Zion | Found Prototype Hackware 16768 | -6/Zion | Identified Exp. Hacking Suite 16772 | -6/Zion | Found Prototype Processor 16772 | -6/Zion | Identified Exp. Core Analyzer 16776 | -6/Zion | Identified Mobile Refinery Mk. CCLXVII 16778 | -6/Zion | Identified Hacking Drone Bay 16785 | -6/Zion | Found Prototype Processor 16785 | -6/Zion | Identified Exp. Target Analyzer 16941 | -6/Zion | Entered Proximity Caves 16941 | -5/Proximity Caves | Accompanied by 5 allies 17150 | -5/Proximity Caves | Build established: Derelict-Gunner 17244 | -5/Proximity Caves | Received a Behemoth hack from an annoying Tinkerer 17305 | -5/Proximity Caves | Discovered exit to Factory (range 12) 17500 | -5/Proximity Caves | Entered Factory 17500 | -5/Factory | Accompanied by 4 allies 17500 | -5/Factory | Evolved 2 slots: Propulsion x1, Utility x1 17501 | -5/Factory | Identified exit to Upper Caves 17501 | -5/Factory | Identified exit to Extension 17502 | -5/Factory | Identified exit to Factory 17503 | -5/Factory | Build established: Hacker-Gunner 17729 | -5/Factory | Lost 3 parts (1p1n1u) 17878 | -5/Factory | Incoming investigation squad redirected 17936 | -5/Factory | Fabricated Combat Drone Bay (x1) 18573 | -5/Factory | Entered Upper Caves 18804 | -5/Upper Caves | Lost 3 parts (1p1n1w) 18809 | -5/Upper Caves | Learned location of 1 exit from Factory 18924 | -5/Upper Caves | Build established: Gunner 19100 | -5/Upper Caves | Spotted B-75 Beast 19107 | -5/Upper Caves | Allies destroyed B-75 Beast 19235 | -5/Upper Caves | Discovered new exit (range 5) 19241 | -5/Upper Caves | Identified exit to Upper Caves 19242 | -5/Upper Caves | Entered another Upper Caves area 19242 | -5/Upper Caves | Accompanied by 2 allies 19242 | -5/Upper Caves | Discovered exit to Factory (range 24) 19468 | -5/Upper Caves | Attracted the attention of an 0b10 checkpoint 19505 | -5/Upper Caves | Learned location of 1 exit from Proximity Caves 19530 | -5/Upper Caves | Learned 8 Factory zone layouts 19583 | -5/Upper Caves | Discovered new exit (range 13) 19667 | -5/Upper Caves | Identified exit to Zhirov 19669 | -5/Upper Caves | Entered Zhirov 19669 | -5/Zhirov | Accompanied by 1 ally 19669 | -5/Zhirov | Discovered new exit (range 3) 19694 | -5/Zhirov | Met Zhirov 19719 | -5/Zhirov | Learned location of Quarantine (-2) 19719 | -5/Zhirov | Learned location of Testing (-3) 19719 | -5/Zhirov | Learned location of Command (-1) 19746 | -5/Zhirov | Zhirov requested help retrieving the SGEMP Prototype 19767 | -5/Zhirov | Found Alien Artifact 19767 | -5/Zhirov | Identified Integrated Reactor 19767 | -5/Zhirov | Installed Integrated Reactor, increased core energy generation (+10) 19789 | -5/Zhirov | Found Alien Artifact 19899 | -5/Zhirov | Cloak Generator disabled 19899 | -5/Zhirov | Attacked by Zhirov 19932 | -5/Zhirov | Zhirov warped through subspace 19941 | -5/Zhirov | Zhirov detonated his lab 19942 | -5/Zhirov | Core integrity fell below 50% 19942 | -5/Zhirov | Core integrity fell below 20% 19972 | -5/Zhirov | Lost 7 parts (1p4n2u) 20014 | -5/Zhirov | Identified exit to Proximity Caves 20023 | -5/Zhirov | Entered Proximity Caves 20111 | -4/Proximity Caves | Entered Factory 20111 | -4/Factory | Evolved 2 slots: Propulsion x1, Utility x1 20112 | -4/Factory | Identified exit to Research 20254 | -4/Factory | Identified exit to DSF 20276 | -4/Factory | Build established: Hacker-Sprinter 20291 | -4/Factory | Entered DSF 20306 | -4/DSF | Additional patrols routed to DSF 20325 | -4/DSF | Discovered exit to Research (range 16) 20330 | -4/DSF | Entered Research 20330 | -3/Research | Evolved 2 slots: Utility x2 20403 | -3/Research | Fabricated Exp. Optical Array? 20542 | -3/Research | Found Imp. Powered Armor 20552 | -3/Research | Lost 3 parts (2u1w) 20580 | -3/Research | Search patrols dispatched 20611 | -3/Research | Discovered new exit (range 3) 20611 | -3/Research | Identified exit to Research 20750 | -3/Research | Found Enh. Force Lance 20754 | -3/Research | Found Fusion Bomb Launcher 20830 | -3/Research | Search patrols dispatched 20860 | -3/Research | Found Exp. Hacking Suite 20925 | -3/Research | Identified exit to Armory 20925 | -3/Research | Identified exit to Testing 20938 | -3/Research | Found Gamma Bomb Array 20963 | -3/Research | Spotted B-86 Titan 20973 | -3/Research | Entered Testing 21043 | -3/Testing | Build established: Hacker-Ninja 21051 | -3/Testing | Spotted Striker 21055 | -3/Testing | Fabricated Lgt. Regenerative Plating? 21167 | -3/Testing | Protovariant out of control (PP-2SHQ0LUZ9I) 21167 | -3/Testing | Unleashed a protovariant (PP-2SHQ0LUZ9I) 21184 | -3/Testing | Incoming assault squad redirected 21191 | -3/Testing | Spotted PP-2SHQ0LUZ9I 21202 | -3/Testing | Scanned by Researcher 21223 | -3/Testing | Search patrols dispatched 21251 | -3/Testing | Fabricated Lgt. Regenerative Plating? 21363 | -3/Testing | Spotted Striker 21392 | -3/Testing | Entered Research 21392 | -2/Research | Evolved 2 slots: Propulsion x1, Utility x1 21397 | -2/Research | Identified exit to DSF 21411 | -2/Research | Discovered new exit (range 20) 21487 | -2/Research | Fabricated Q-thruster? 21652 | -2/Research | Entered DSF 21655 | -2/DSF | Found Enh. Force Lance 21681 | -2/DSF | Additional patrols routed to DSF 21689 | -2/DSF | Discovered new exit (range 15) 21698 | -2/DSF | Identified exit to Access 21699 | -2/DSF | Entered Access 21699 | -1/Access | Evolved 2 slots: Propulsion x1, Utility x1 21702 | -1/Access | Identified exit to Command 21733 | -1/Access | Identified exit to Surface 21826 | -1/Access | Found Adv. Powered Armor 21828 | -1/Access | Found Adv. Powered Armor 21966 | -1/Access | Build established: Hacker-Scout 21989 | -1/Access | Spotted B-99 Colossus 22030 | -1/Access | Found Prototype Slashing Weapon 22426 | -1/Access | Entered Command 22447 | -1/Command | Phase Generator disabled 22582 | -1/Command | Disengaged cave seal 22660 | -1/Command | System corruption reached 10% 22672 | -1/Command | Core integrity fell below 50% 22677 | -1/Command | Core integrity fell below 20% 22678 | -1/Command | Destroyed by S-43 Plague with Heavy Machine Gun Last Messages --------------- 22667_ Slug penetrates Wall. 22667_ Adv. Hacking Suite destroyed. 22667_ Slug penetrates Wall. 22669_ Adv. Sensor Array destroyed. 22671_ Med. Storage Unit destroyed. 22671_ Impulse Thruster Array destroyed. 22671_ Slug penetrates Earth. 22673_ P-80 Master resets S-43 Plague, system corruption cleaned. 22674_ Penetrated by Slug. 22674_ 2N-1CE's Frost Array destroyed. 22674_ Slug penetrates H-88 Terminator. 22675_ Exp. Signal Interpreter severed. 22676_ ALERT: Rogue bot located, Programmers report to Command Zone 4K. 22676_ Penetrated by Slug. 22676_ Slug penetrates Y-72 Warden. 22677_ The unstable cave ceiling collapses. 22677_ Slug penetrates S-43 Plague. 22677_ Penetrated by Slug. 22677_ P-80 Master resets Y-72 Warden, system corruption cleaned. 22678_ System corrupted: Heat flow error (+165). Map ----- +----------------------------------------------------+ | ?????# #???????????????????????????????????????? | | ?????# #???????????????????????????????????????? | | ?????# #???????????????????????????????????????? | | ###### ######??????????????????????????????????? | | #??????????????????????????????????? | | #### ### #### #??????????????????????????????????? | | #??# #?# #??# #??????????????????????????????????? | | #??# #?# #??# #??????????????????????????????????? | | #### ### #### ###????????????????????????????????? | | # # # #????????????????????????????????? | | # # # #????????????????????????????????? | | "# # # #????????????????????????????????? | | "# ? # #????????????????????????????????? | | "# ? # #?????????######?????????????????? | | # ? # #?????????# #?????????????????? | | ### #?# ### ##?????????# " #?????????????????? | | #?# #?# #?# #??????????# "T #?????????????????? | | #?# #?# #?# #?????###### #??##?????????????? | | #?# #?# ### #????######## #### ###???????????? | | #?# #?# ## /###??# ### # #???????????? | | #?# #?# ## s# ##### + #???????????? | | #?# #?# ## s%ggg g # # #???????????? | | ### ### ## phgp gsg %!# # #???????????? | | = gsg Yss p = !! #???????????? | | / gg gpgs gpss = ! #??????????? | | %= pp p gg ssYgsc@ ;#####??????????? | | ! g gg hgsg R % # #??????? ? | | ### ### ## gpxg ## #??????? | | #?# #?# ## pp # # # #??????? | | #?# #?# ### ####### w ## ! #??????? | | #?# #?# #?# #????## # #? #????#?# | | #?# #?# #?# #?????####### ## #?? ### | | #?# #?# #?# #??????????# ##+##"#"## ## | | #?# #?# #?# #??????????# ## | | #?# #?# #?# #??????????# ## # | | ? ? ? ????????### ## #### ## # | | ? ? ? ????????#"##/#### #????##?## # | | ? ? # ????????## ## #????????# # | | ? ? # #????????# ## #????????# # | | # # # #????????# * ## #????????# # | | # # # #????????# ## #????????# # | | #################????????# ## ###+#????# # | | ????????????????????????## ## #????# # | | ????????????????????????#" ## #????# # | | ????????????????????????## ## #????# # | | ?????????????????????????# ## #????# # | | ?????????????????????????# ## ###### # | | ????????????????????????## ## | | ????????????????????????#" + ###### | | ????????????????????????##################????#### | +----------------------------------------------------+ Best States ------------- Heat Dissipation 152 Coolant Potential 80 Energy Generation 45 Energy Capacity 825 Matter Stores 300 Matter Capacity 300 Sight Range 23 Robot Scan Range 16 Terrain Scan Range 16 Terrain Scan Density 210 Jamming Range 14 Cloak Strength 3 Armor Coverage 675 Resistance: TH 10 Propulsion Shielding 90 Melee Speed Boost 20 Phase Shifting 5 Evasion (%) 78 Targeting Accuracy 8 Core Analysis 8 Armor Integrity Analysis 40 Recoil Reduction 7 Offensive Hacking 42 Defensive Hacking 14 Item Schematics ----------------- Combat Drone Bay | -7/Data Miner | Free Lgt. Regenerative Plating | -7/Data Miner | Free Cld. Aerolev Unit | -7/Data Miner | Free Gravity Neutralizer | -7/Data Miner | Free Antimatter Cannon | -7/Data Miner | Free Nuclear Pulse Array | -7/Data Miner | Free Remote Force Field | -7/Data Miner | Free Imp. Plasma Cutter | -7/Data Miner | Free Imp. Armor Integrity Analyzer | -7/Data Miner | Free Drone Bay | -6/Zion | Archive Wave Gun | -6/Zion | Archive Imp. Thermal Shield | -6/Zion | Archive Flexi-carbon Leg | -6/Zion | Archive Imp. Remote Datajack | -6/Zion | Archive Force Field | -6/Zion | Archive Centrium Wheel | -6/Zion | Archive Lrn. Proton Cannon | -6/Zion | Archive Beamcaster | -6/Zion | Archive Mapping Drone Bay | -6/Zion | Archive Spk. Medium Treads | -6/Zion | Archive Mass Driver | -6/Zion | Archive Energy Well | -6/Zion | Archive Phase Gun | -6/Zion | Archive Hvy. Mass Driver | -6/Zion | Archive Adv. System Shield | -5/Factory | Hacked Point Defense Array | -5/Factory | Hacked Imp. Gyrokinetic Inverter | -5/Factory | Hacked Assault Drone Bay | -5/Zhirov | Free Exp. Heat Sink | -5/Zhirov | Free Exp. Optical Array | -5/Zhirov | Free Imp. Arc Thrower | -5/Zhirov | Free Q-thruster | -3/Testing | Scanalyzed Cmb. Linear Gravjet | -3/Testing | Hacked Cld. Proton Cannon | -3/Testing | Archive Spectral Analyzer | -3/Testing | Archive Enh. Nova Cannon | -2/Research | Hacked Robot Schematics ------------------ P-60 Hacker | -7/Data Miner | Free B-48 Gladiator | -7/Data Miner | Free L-41 Fighter | -7/Data Miner | Free S-27 Virus | -7/Data Miner | Free A-02 Transporter | -6/Zion | Archive K-01 Serf | -6/Zion | Archive R-10 Processor | -6/Zion | Archive Y-72 Warden | -3/Testing | Archive Fabricated ------------ Adv. Signal Interpreter | x2 | -6/Factory | Preloaded Combat Drone Bay | x1 | -5/Factory Exp. Optical Array | x1 | -3/Research Lgt. Regenerative Plating | x1 | -3/Testing Lgt. Regenerative Plating | x1 | -3/Testing Q-thruster | x2 | -2/Research Alien Tech Used ----------------- Integrated Reactor Achievements -------------- Exposed Rampage Challenges ------------ None Game ------ Seed DamperMicroStripper Manual? 0 Play Time 03:20:55 Cumulative 397.5 hours Start 2022.07.11 @ 14:52:56 End 2022.07.11 @ 21:49:40 Sessions 1 Manual Loads 0 Difficulty Rogue Special Mode None Game No. 457 Rogue 456 Adventurer 0 Explorer 1 Win Type - Total 9 Types 6/0/1/2/0/0/0/0/0 Lore% 75 Gallery% 86 Achievement% 66 Wizard Run 0 Options --------- ASCII 0 Keyboard 1 Movement Vi Keybinds 0 Fullscreen 1 Font 18/SmallcapsGlow Map View 76x50 Tactical HUD 1 Map Filters NONE Filters NONE Steam 1 RUN: ee5fc45b-694f-4e4c-babe-97454b3cbe9c